[Event "Smuk Skak GM Tournament 2024"]
[Site "Skanderborg"]
[Date "2024.08.23"]
[Round "7.1"]
[White "Kosakowski, Jakub"]
[Black "Aczel, Gergely"]
[Result "1/2-1/2"]
[ECO "B12"]
[WhiteElo "2501"]
[BlackElo "2485"]
[Annotator "TA"]
[PlyCount "92"]
[EventDate "2024.08.11"]
[EventType "tourn"]
[EventCountry "DEN"]
[SourceTitle "playchess.com"]
[Source "ChessBase"]
[SourceQuality "1"]
[TimeControl "40/5400+30:1800+30"]

{[%evp 23,92,14,16,10,15,12,28,17,29,14,16,23,16,13,23,14,16,4,24,-27,-12,-23,-6,-8,-7,-5,-14,-2,-9,-52,0,0,0,0,0,0,0,0,0,0,0,0,0,0,0,-6,0,0,0,0,0,0,0,0,0,-12,-12,-12,-12,-25,-25,-25,-25,-25,-25,-25,-8,-8,-8,-8,-8]} 1. e4 {[%emt 0:00:09]} c6 {[%emt 0:00:04]} 2. d4 {[%emt 0:00:14]} d5 {[%emt 0:00:05]} 3. e5 {[%emt 0:00:26]} c5 {[%emt 0:00:05]} 4. Nf3 {[%emt 0:00:38]} cxd4 {[%emt 0:00:08]} 5. Nxd4 {[%emt 0:00:11]} Nc6 {[%emt 0:00:19]} 6. Nxc6 {[%emt 0:00:20] B12: Caro-Kann: Advance Variation.} bxc6 {[%emt 0:00:05]} 7. Bd3 {[%emt 0:00:09]} e6 {[%emt 0:00:12]} 8. O-O {[%emt 0:00:32]} Ne7 {[%emt 0:00:30]} 9. Nd2 {[%emt 0:00:36]} a5 {[%emt 0:00:18]} 10. Nf3 {[%emt 0:01:18]} Ba6 {[%emt 0:00:13]} 11. Bxa6 {[%emt 0:01:40]} Rxa6 {[%emt 0:00:02]} 12. c4 {[%emt 0:00:28]} dxc4 {[%emt 0:01:28]} 13. Bd2 {[%emt 0:09:39]} Nd5 {[%emt 0:00:18]} 14. Qe2 {[%emt 0:03:43]} Qa8 {[%emt 0:05:46]} 15. Qxc4 {[%emt 0:03:08]} h6 {[%emt 0:00:05]} 16. Rac1 {[%emt 0:05:40]} Be7 {[%emt 0:07:07]} 17. Qg4 {[%emt 0:11:21]} g6 {[%emt 0:00:13]} 18. Rc4 $146 {[%emt 0:02:34]} ({Predecessor:} 18. h4 c5 19. a3 Rb6 20. Rc2 Kf8 21. Qe4 {½-½ Sury,R (2239)-Greninger,H (2268) W-ch WS/M/883 email 2023}) 18... Kf8 {[%emt 0:05:19]} 19. Rfc1 {[%emt 0:04:13]} Kg7 {[%emt 0:00:27]} 20. Ne1 {[%emt 0:06:45]} Rd8 {[%emt 0:19:51]} 21. Qh3 {[%emt 0:01:44]} (21. h4 $142) 21... h5 $11 {[%emt 0:01:38]} 22. Nd3 {[%emt 0:14:05]} Nb4 {[%emt 0:28:18]} 23. Nxb4 {[%emt 0:05:44]} axb4 {[%emt 0:00:18]} 24. Bxb4 {[%emt 0:00:21]} Bxb4 {[%emt 0:09:18]} 25. Rxb4 {[%emt 0:00:07]} c5 {[%emt 0:03:45]} 26. Rbc4 {[%emt 0:03:38]} Qd5 {[%emt 0:04:31]} (26... Rxa2 $15 27. Qh4 Rd5 (27... Rxb2 28. Rxc5 Rdd2 29. Qf6+ Kh6 30. Qf4+ Kg7 31. Rc7 $11)) 27. g4 $11 {[%emt 0:04:02]} (27. Rxc5 $2 Qd1+ 28. Rxd1 Rxd1#) 27... Qxe5 {[%emt 0:05:40]} ({Of course not} 27... Rxa2 28. Qh4 Rf8 (28... Rxb2 $2 {perishes.} 29. Qf6+ Kg8 30. gxh5 $18) 29. Qf6+ (29. gxh5 Qd8 $14) 29... Kh7 30. Rxc5 $14) 28. gxh5 {[%emt 0:04:00]} Rh8 {[%emt 0:03:10]} 29. Rxc5 {[%emt 0:01:02]} Qxb2 {[%emt 0:00:04]} 30. R1c2 {[%emt 0:07:31]} Qd4 {[%emt 0:01:25]} 31. Qc3 {[%emt 0:05:20]} Qxc3 {[%emt 0:00:24]} 32. R2xc3 {[%emt 0:00:06]} Rxh5 {[%emt 0:00:53]} 33. Rxh5 {[%emt 0:00:10]} gxh5 {[%emt 0:00:04]} 34. a3 {[%emt 0:00:06]} e5 {[%emt 0:00:17]} 35. Rg3+ $1 {[%emt 0:00:35]} Kf6 {[%emt 0:00:12]} 36. Rf3+ {[%emt 0:00:16]} Ke6 {[%emt 0:00:26]} 37. Rh3 {[%emt 0:00:09]} f5 {[%emt 0:00:30]} 38. Rxh5 {[%emt 0:00:10]} Rxa3 {[%emt 0:00:05]} 39. Rh8 {[%emt 0:00:40]} e4 {[%emt 0:02:46]} 40. Kg2 {[%emt 0:00:51]} Ke5 {[%emt 0:00:33]} 41. Re8+ {[%emt 0:07:30]} Kf4 {[%emt 0:00:09]} 42. Rb8 {[%emt 0:00:18]} Ra7 {[%emt 0:03:02]} 43. Rb3 {[%emt 0:00:36]} Rg7+ {[%emt 0:00:11]} 44. Rg3 {[%emt 0:00:11]} Rg4 {[%emt 0:01:39]} 45. Rxg4+ {[%emt 0:02:17]} Kxg4 {[%emt 0:01:04]} 46. f3+ $1 {[%emt 0:00:09]} exf3+ {[%emt 0:00:16]} 1/2-1/2

[Event "Smuk Skak GM Tournament 2024"]
[Site "Skanderborg"]
[Date "2024.08.23"]
[Round "7.2"]
[White "Olsen, Filip Boe"]
[Black "Fromm, Marius"]
[Result "1-0"]
[ECO "A46"]
[WhiteElo "2431"]
[BlackElo "2447"]
[Annotator "TA"]
[PlyCount "89"]
[EventDate "2024.08.11"]
[EventType "tourn"]
[EventCountry "DEN"]
[SourceTitle "playchess.com"]
[Source "ChessBase"]
[SourceQuality "1"]
[TimeControl "40/5400+30:1800+30"]

{[%evp 12,89,9,9,18,1,16,0,0,0,0,0,2,0,0,0,0,0,0,0,0,0,0,-24,0,-43,0,0,7,0,28,-12,35,25,19,-39,-15,-18,-12,-7,-9,-62,-44,-130,-38,-33,52,56,65,49,74,65,51,51,137,123,156,169,484,503,599,600,653,660,527,506,920,897,1197,1203,1565,1525,6087,6107,5941,5753,5122,5122,5114,5089]} 1. d4 Nf6 2. Nf3 e6 3. e3 c5 4. Bd3 Nc6 5. O-O d5 6. b3 cxd4 7. exd4 b6 8. a3 Bb7 9. Bb2 g6 {The position is equal.} 10. Nbd2 Bg7 11. Ne5 O-O 12. Qe2 Rc8 13. Rad1 Ne7 14. a4 Nf5 15. Rfe1 Re8 {[%cal Bf8e8,Be8e7,Be7c7][%mdl 32]} 16. c3 Re7 17. Nf1 Rec7 18. Ne3 Nd6 19. f3 Nh5 20. g3 {Prevents Nf4} Nf6 21. h4 Nh5 (21... Qe7 $11) 22. Qh2 $1 $14 Nf6 23. Ng2 (23. g4 $11) 23... Rxc3 24. Bxc3 Rxc3 25. Nf4 Rxb3 26. Qc2 (26. h5 $11) 26... Rb4 $15 {[%cal Of6d7]} 27. Ba6 Bxa6 ({Black should try} 27... Qe7 $17 28. Bb5 Nfe8 29. Bxe8 Nxe8) 28. Nc6 $1 {[%csl LRa7,LRb4,LRd8]} Rc4 (28... Qc7 $15 29. Nxb4 Bc4) 29. Qxc4 $14 Bxc4 (29... dxc4 30. Nxd8 Nf5 31. d5 Nxd5 32. Nxd5 exd5 33. Rxd5 $18 (33. Re8+ Bf8 $16)) 30. Nxd8 {White has more active pieces.} Nf5 31. g4 Nxh4 32. Kf2 $36 {[%mdl 2048] White is pushing.} g5 (32... h5 $14) 33. Nd3 $16 h5 34. Ne5 Bb3 $2 (34... hxg4 {is tougher.} 35. fxg4 (35. Ndxf7 Nxf3 36. Nxf3 Kxf7 $16) 35... Bb3) 35. Rc1 $18 {White is clearly winning.} hxg4 36. Rc8 (36. Nexf7 Nxf3 37. Rc8 (37. Rxe6 Ne4+ 38. Kf1 Nxd4 $11) 37... Ne4+ (37... Bxa4 38. Nxg5 Nxe1 39. Ndxe6+ Be8 40. Kxe1 $11) 38. Rxe4 dxe4 $17) (36. fxg4 Ne4+ 37. Rxe4 dxe4 $16) 36... g3+ 37. Kxg3 Nf5+ 38. Kf2 Nd6 (38... Bxa4 $142 39. Ndxf7+ Ne8) 39. Ra8 (39. Ndxf7+ Nxc8 40. Nxg5 Bxa4 41. Nxe6 Ne8 $19) 39... Bf8 {[#]} 40. Nexf7 $1 {[%mdl 512]} Nxf7 (40... Nf5 41. Nxg5) 41. Nxe6 Nh7 42. Nxf8 Nxf8 43. Ree8 Kg7 44. Rxf8 {[#] White threatens Rg8+ and mate.} a5 45. Rg8+ {Weighted Error Value: White=0.12 (very precise) /Black=0.41.  Mistake:       	White=3     	Black=5      Inaccurate:     	White=2     	Black=3      OK:         	White=13    	Black=10     Best:        	White=5     	---        Strong:       	White=2     	---} 1-0

[Event "Smuk Skak GM Tournament 2024"]
[Site "Skanderborg"]
[Date "2024.08.23"]
[Round "7.4"]
[White "Kanov, Nikola"]
[Black "Pajeken, Jakob Leon"]
[Result "1-0"]
[ECO "B90"]
[WhiteElo "2414"]
[BlackElo "2416"]
[Annotator "RC"]
[PlyCount "79"]
[EventDate "2024.08.11"]
[EventType "tourn"]
[EventCountry "DEN"]
[SourceTitle "playchess.com"]
[Source "ChessBase"]
[SourceQuality "1"]
[TimeControl "40/5400+30:1800+30"]

1. e4 {[%emt 0:00:05]} c5 {[%emt 0:00:05]} 2. Nf3 {[%emt 0:00:13]} d6 {[%emt 0:00:04]} 3. d4 {[%emt 0:00:13]} cxd4 {[%emt 0:00:03]} 4. Nxd4 {[%emt 0:00:09]} Nf6 {[%emt 0:00:04]} 5. Nc3 {[%emt 0:00:13]} a6 {[%emt 0:00:03]} 6. h3 {[%emt 0:00:32]} e6 {[%emt 0:02:47]} 7. Qf3 {[%emt 0:03:25]} Qc7 {[%emt 0:00:58]} 8. a4 {[%emt 0:08:24]} Nbd7 {[%emt 0:08:39]} 9. g4 {[%emt 0:07:48]} h6 {[%emt 0:02:04]} 10. Bg2 {[%emt 0:02:43]} g5 {[%emt 0:03:47]} 11. Qg3 {[%emt 0:08:47]} Rg8 {[%emt 0:07:17]} 12. Nde2 {[%emt 0:13:46]} h5 {[%emt 0:07:57]} 13. f4 {[%emt 0:12:21]} gxf4 {[%emt 0:01:38]} 14. Bxf4 {[%emt 0:00:58]} hxg4 {[%emt 0:00:54]} 15. hxg4 {[%emt 0:01:07]} Nxg4 {[%emt 0:02:27]} 16. O-O-O {[%emt 0:02:22]} Nde5 {[%emt 0:02:13]} 17. Bh3 {[%emt 0:02:16]} Nf6 {[%emt 0:01:40]} 18. Qf2 {[%emt 0:05:30]} Be7 {[%emt 0:01:46]} 19. Rhg1 {[%emt 0:04:44]} Rxg1 {[%emt 0:02:37]} 20. Rxg1 {[%emt 0:02:39]} Bd7 {[%emt 0:02:01]} 21. Rg7 {[%emt 0:04:47]} Bc6 {[%emt 0:10:34]} 22. Nd4 {[%emt 0:11:26]} Qb6 {[%emt 0:19:34]} 23. Bg5 {[%emt 0:00:30]} O-O-O {[%emt 0:05:52]} 24. Bxe6+ {[%emt 0:01:44]} fxe6 {[%emt 0:01:07]} 25. Rxe7 {[%emt 0:00:06]} Nfg4 {[%emt 0:00:34]} 26. Qg1 {[%emt 0:01:02]} Rg8 {[%emt 0:01:17]} 27. Bf4 {[%emt 0:00:40]} Ng6 {[%emt 0:05:16]} 28. a5 {[%emt 0:01:51]} Qc5 {[%emt 0:03:16]} 29. Rc7+ {[%emt 0:00:27]} Kxc7 {[%emt 0:01:21]} 30. Nxe6+ {[%emt 0:00:07]} Kc8 {[%emt 0:00:27]} 31. Nxc5 {[%emt 0:00:31]} Nxf4 {[%emt 0:00:08]} 32. Nd3 {[%emt 0:00:52]} Ne6 {[%emt 0:00:32]} 33. Qg3 {[%emt 0:01:33]} Kd7 {[%emt 0:02:11]} 34. b4 {[%emt 0:02:13]} Rg5 {[%emt 0:01:07]} 35. Kb2 {[%emt 0:01:00]} Ne5 {[%emt 0:00:43]} 36. Nxe5+ {[%emt 0:00:44]} Rxe5 {[%emt 0:00:04]} 37. Qh3 {[%emt 0:00:31]} Kc7 {[%emt 0:03:02]} 38. Qh7+ {[%emt 0:00:05]} Kb8 {[%emt 0:00:47]} 39. Qe7 {[%emt 0:00:27]} Nc7 {[%emt 0:00:09]} 40. Qd8+ {[%emt 0:00:06]} 1-0

[Event "Smuk Skak GM Tournament 2024"]
[Site "Skanderborg"]
[Date "2024.08.23"]
[Round "7.5"]
[White "Licznerski, Lukasz"]
[Black "Solodovnichenko, Yuri"]
[Result "1/2-1/2"]
[ECO "B08"]
[WhiteElo "2427"]
[BlackElo "2491"]
[Annotator "TA"]
[PlyCount "80"]
[EventDate "2024.08.11"]
[EventType "tourn"]
[EventCountry "DEN"]
[SourceTitle "playchess.com"]
[Source "ChessBase"]
[SourceQuality "1"]
[TimeControl "40/5400+30:1800+30"]

{[%evp 13,80,20,27,18,25,30,34,28,29,12,16,38,17,19,22,-10,0,0,0,0,0,0,0,0,0,0,0,0,0,0,15,7,13,0,8,-44,-32,-31,-41,-45,-48,-62,-55,-64,-50,-78,-27,-31,-29,-24,-17,-17,-22,-10,-9,-22,-8,-8,-8,-9,-8,-8,-8,-8,-1,-4,0,0,0]} 1. e4 {[%emt 0:00:03]} g6 {[%emt 0:00:08]} 2. d4 {[%emt 0:00:07]} d6 {[%emt 0:00:04]} 3. Nf3 {[%emt 0:01:30]} Nf6 {[%emt 0:00:06]} 4. Nc3 {[%emt 0:00:04]} Bg7 {[%emt 0:00:05]} 5. Be2 {[%emt 0:00:13]} O-O {[%emt 0:00:10]} 6. O-O {[%emt 0:00:03]} Nc6 {[%emt 0:00:38]} 7. h3 {[%emt 0:04:52]} a6 {[%emt 0:05:56]} 8. Be3 {[%emt 0:07:02]} e6 {[%emt 0:05:13][%cal Be7e6,Be6e5][%mdl 32]} 9. Qd2 {[%emt 0:01:41]} b5 {[%emt 0:00:26]} 10. a3 {[%emt 0:00:10] White is slightly better.} Bb7 {[%emt 0:02:52]} 11. Bh6 {[%emt 0:01:13]} e5 {[%emt 0:11:09]} 12. Bxg7 {[%emt 0:13:53]} Kxg7 {[%emt 0:00:08]} 13. d5 {[%emt 0:00:03]} Ne7 {[%emt 0:00:43]} 14. Nh2 {[%emt 0:04:44]} c6 {[%emt 0:00:40]} 15. dxc6 {[%emt 0:09:58]} Bxc6 {[%emt 0:00:56]} 16. Ng4 {[%emt 0:00:01]} Nxg4 {[%emt 0:04:11]} 17. hxg4 {[%emt 0:00:10]} d5 {[%emt 0:01:02]} 18. exd5 {[%emt 0:04:59]} Nxd5 {[%emt 0:00:06]} 19. Nxd5 {[%emt 0:07:10]} (19. Rad1 $5 Nf4 $8 20. Qe3 $11) 19... Qxd5 {[%emt 0:00:23]} 20. Qxd5 {[%emt 0:00:02]} Bxd5 {[%emt 0:00:07]} 21. a4 {[%emt 0:14:34]} b4 {[%emt 0:04:07]} 22. Rfd1 {[%emt 0:10:28]} Be4 {[%emt 0:04:31]} 23. Rd2 {[%emt 0:00:02]} Rfc8 {[%emt 0:02:54]} 24. Bd1 {[%emt 0:00:02]} (24. Rc1 $11) 24... Rc5 $15 {[%emt 0:06:22]} 25. f3 {[%emt 0:05:21]} Bc6 {[%emt 0:01:52]} 26. Be2 {[%emt 0:00:08]} a5 {[%emt 0:01:53]} 27. Bd3 {[%emt 0:03:40]} Rd8 {[%emt 0:03:31]} 28. Re2 {[%emt 0:01:04] [#] Inhibits f5.} b3 $1 {[%emt 0:00:32][%cal Of7f5]} 29. Ra3 {[%emt 0:00:05]} (29. Kf2 e4) 29... bxc2 {[%emt 0:03:54]} (29... Bd5 $17 30. cxb3 Bxf3 31. gxf3 Rxd3) 30. Rxc2 $11 {[%emt 0:01:41]} Rxc2 {[%emt 0:00:39]} 31. Bxc2 $17 {[%emt 0:00:02][%mdl 4096] Endgame. KRB-KRB} Rd4 {[%emt 0:01:25]} 32. Rc3 {[%emt 0:04:58] The position is equal.} Bxa4 {[%emt 0:00:29]} 33. b3 {[%emt 0:00:02]} Bd7 {[%emt 0:03:48] With the idea ...Be6.} 34. Rc5 $1 {[%emt 0:00:21][%csl LRa5,LRe5]} Rd2 {[%emt 0:02:29]} 35. Be4 $1 {[%emt 0:00:30]} Kf6 {[%emt 0:04:15]} 36. Rxa5 {[%emt 0:00:12]} Be6 {[%emt 0:00:25]} 37. b4 {[%emt 0:01:21]} Rb2 {[%emt 0:05:25]} 38. b5 {[%emt 0:02:04]} Kg5 {[%emt 0:01:44]} 39. Kh2 {[%emt 0:02:20]} h5 {[%emt 0:06:42]} 40. gxh5 {[%emt 0:00:26]} gxh5 {[%emt 0:00:03] Weighted Error Value: White=0.07 (flawless) /Black=0.04 (flawless) .  Mistake:       	White=1     	Black=1      Inaccurate:     	White=2     	---        OK:         	White=10    	Black=15     Best:        	White=2     	---        Strong:       	White=2     	---} 1/2-1/2

[Event "Smuk Skak GM Tournament 2024"]
[Site "Skanderborg"]
[Date "2024.08.24"]
[Round "8.1"]
[White "Kosakowski, Jakub"]
[Black "Olsen, Filip Boe"]
[Result "1-0"]
[ECO "B12"]
[WhiteElo "2501"]
[BlackElo "2431"]
[Annotator "TA"]
[PlyCount "65"]
[EventDate "2024.08.11"]
[EventType "tourn"]
[EventCountry "DEN"]
[SourceTitle "playchess.com"]
[Source "ChessBase"]
[SourceQuality "1"]
[TimeControl "40/5400+30:1800+30"]

{[%evp 9,64,11,22,5,14,14,12,14,9,0,9,4,0,7,21,0,35,37,32,39,27,21,43,35,56,51,97,109,129,76,137,109,258,260,433,393,410,403,878,866,863,860,722,572,576,553,5406,5365,2558,2343,29995,29996,29997,29998,29998,29999,29999]} 1. e4 {[%emt 0:00:11]} c6 {[%emt 0:00:08]} 2. d4 {[%emt 0:00:22]} d5 {[%emt 0:00:09]} 3. e5 {[%emt 0:00:50]} Bf5 {[%emt 0:00:08]} 4. c4 {[%emt 0:01:24]} e6 {[%emt 0:00:45]} 5. Nc3 {[%emt 0:00:12]} Bb4 {[%emt 0:00:26]} 6. cxd5 {[%emt 0:01:14]} cxd5 {[%emt 0:00:16]} 7. h4 {[%emt 0:00:24]} h6 {[%emt 0:01:28]} 8. g4 {[%emt 0:00:34] The position is equal.} Bh7 {[%emt 0:01:38]} 9. h5 {[%emt 0:00:25]} Nc6 {[%emt 0:02:21]} 10. Bd3 {[%emt 0:01:43]} Bxd3 {[%emt 0:02:36]} 11. Qxd3 {[%emt 0:00:08]} Nge7 {[%emt 0:06:37][%cal Oc6d4]} 12. Nge2 {[%emt 0:01:58]} a6 {[%emt 0:12:10]} 13. Bd2 {[%emt 0:05:17]} Na5 {[%emt 0:06:26]} 14. b3 {[%emt 0:01:49] Wards off Nc4} Rc8 {[%emt 0:01:11]} 15. f4 {[%emt 0:04:15]} f5 {[%emt 0:08:30]} 16. exf6 {[%emt 0:04:43]} gxf6 {[%emt 0:00:02]} 17. O-O-O {[%emt 0:21:50]} b5 {[%emt 0:13:47]} (17... Qb6 $1 $14 {is more appropriate.}) 18. Kb1 $16 {[%emt 0:00:43]} Qb6 {[%emt 0:00:49][%cal Oa5c4]} 19. Ka1 {[%emt 0:12:40]} (19. Qf3 $142) 19... Nb7 {[%emt 0:17:08]} ({Better is} 19... Nac6) 20. f5 {[%emt 0:03:51] Threatens to win with Nf4.} exf5 {[%emt 0:02:11] [#] This move loses the game for Black.} (20... Rg8 $16) 21. Rhe1 $1 $18 {[%emt 0:02:17]} (21. gxf5 $6 Kf7 $16) 21... Kf7 $2 {[%emt 0:05:13]} (21... Qd6 {might work better.} 22. Ng3 (22. gxf5 Kf7 $16) 22... Bxc3+ 23. Bxc3 Kd8 24. Nxf5 (24. gxf5 Rg8 $18) 24... Nxf5) 22. Nf4 {[%emt 0:06:07]} ({Weaker is} 22. gxf5 Qc6 $16) 22... Bxc3+ {[%emt 0:05:52]} 23. Bxc3 {[%emt 0:00:20]} Qc7 {[%emt 0:00:48]} (23... Qd6 $142) 24. Bb4 {[%emt 0:05:11]} Nd6 {[%emt 0:03:47]} 25. Re6 {[%emt 0:04:00]} Rcd8 {[%emt 0:00:49][%cal Bc8d8,Bd8d6,Bd6c6][%mdl 32]} 26. Rde1 {[%emt 0:02:26]} Rhe8 {[%emt 0:00:43]} 27. gxf5 {[%emt 0:05:19] Qg3 would now be deadly.} a5 {[%emt 0:06:50]} 28. Bxd6 {[%emt 0:01:05]} Rxd6 {[%emt 0:00:07]} 29. Qg3 {[%emt 0:00:25][%cal Og3g6] Intending Qg6+! and mate.} (29. Qxb5 Qc3+ 30. Kb1 Rxe6 31. fxe6+ Kf8 $18) 29... Rc6 {[%emt 0:00:41] [#]} 30. Qg6+ $3 {[%emt 0:00:13][%mdl 512] White mates.} Nxg6 {[%emt 0:00:14]} (30... Kf8 31. Qxf6+) 31. hxg6+ {[%emt 0:00:06]} Kf8 {[%emt 0:00:23]} 32. Rxe8+ {[%emt 0:00:05]} Kg7 {[%emt 0:00:04]} 33. Nh5# {[%emt 0:00:06] Weighted Error Value: White=0.22 (precise) /Black=0.48.  Mistake:       	White=1     	Black=5      Inaccurate:     	---       	Black=2      OK:         	White=12    	Black=7      Best:        	White=2     	---} 1-0

[Event "Smuk Skak GM Tournament 2024"]
[Site "Skanderborg"]
[Date "2024.08.24"]
[Round "8.2"]
[White "Fromm, Marius"]
[Black "Licznerski, Lukasz"]
[Result "1-0"]
[ECO "A13"]
[WhiteElo "2447"]
[BlackElo "2427"]
[Annotator "RC"]
[PlyCount "47"]
[EventDate "2024.08.11"]
[EventType "tourn"]
[EventCountry "DEN"]
[SourceTitle "playchess.com"]
[Source "ChessBase"]
[SourceQuality "1"]
[TimeControl "40/5400+30:1800+30"]

1. c4 c6 {[%emt 0:00:08]} 2. Nf3 {[%emt 0:00:33]} Nf6 {[%emt 0:00:30]} 3. g3 {[%emt 0:00:30]} d5 {[%emt 0:00:30]} 4. Bg2 {[%emt 0:00:30]} e6 {[%emt 0:00:30]} 5. O-O {[%emt 0:00:30]} Bd6 {[%emt 0:00:30]} 6. d4 {[%emt 0:00:30]} O-O {[%emt 0:00:30]} 7. Qc2 {[%emt 0:00:30]} Nbd7 {[%emt 0:00:30]} 8. Nbd2 {[%emt 0:00:30]} c5 {[%emt 0:00:30]} 9. dxc5 {[%emt 0:00:30]} Nxc5 {[%emt 0:00:30]} 10. b4 {[%emt 0:00:30]} Nce4 {[%emt 0:00:30]} 11. c5 {[%emt 0:00:30]} Be7 {[%emt 0:00:30]} 12. Nxe4 {[%emt 0:00:30]} Nxe4 {[%emt 0:00:30]} 13. Bb2 {[%emt 0:00:30]} a5 {[%emt 0:00:30]} 14. a3 {[%emt 0:00:30]} Bd7 {[%emt 0:00:30]} 15. Ne5 {[%emt 0:00:30]} Nf6 {[%emt 0:00:30]} 16. Nxd7 {[%emt 0:00:30]} Qxd7 {[%emt 0:00:30]} 17. Qd3 {[%emt 0:00:30]} Rfd8 {[%emt 0:00:30]} 18. Rfc1 {[%emt 0:00:30]} Qc7 {[%emt 0:00:30]} 19. Qb5 {[%emt 0:00:30]} Qc6 {[%emt 0:00:30]} 20. Qd3 {[%emt 0:00:30]} Qc7 {[%emt 0:00:30]} 21. Rab1 {[%emt 0:00:30]} Ne8 {[%emt 0:00:30]} 22. e4 {[%emt 0:00:30]} Bf6 {[%emt 0:00:30]} 23. exd5 {[%emt 0:00:30]} exd5 {[%emt 0:00:30]} 24. b5 {[%emt 0:00:30]} 1-0

[Event "Smuk Skak GM Tournament 2024"]
[Site "Skanderborg"]
[Date "2024.08.24"]
[Round "8.3"]
[White "Aczel, Gergely"]
[Black "Thybo, Jesper Sondergaard"]
[Result "1/2-1/2"]
[ECO "E46"]
[WhiteElo "2485"]
[BlackElo "2554"]
[Annotator "TA"]
[PlyCount "61"]
[EventDate "2024.08.11"]
[EventType "tourn"]
[EventCountry "DEN"]
[SourceTitle "playchess.com"]
[Source "ChessBase"]
[SourceQuality "1"]
[TimeControl "40/5400+30:1800+30"]

{[%evp 13,61,3,-4,0,19,0,0,0,6,12,0,0,0,0,0,4,17,-8,-8,0,0,0,0,-3,18,0,0,0,0,-10,-6,-7,-8,-8,147,-2,-6,-1,0,-6,-12,-5,0,0,0,0,0,0,0,0]} 1. d4 Nf6 2. c4 e6 3. Nc3 Bb4 4. e3 O-O 5. Bd2 d5 6. Nf3 b6 {[%cal Bb7b6,Bb6c5,Bc5d4,Bd4d3][%mdl 32]} 7. cxd5 exd5 8. Rc1 c5 9. dxc5 bxc5 10. Bb5 a6 11. Ba4 d4 12. exd4 cxd4 13. Ne2 Bxd2+ 14. Qxd2 {[%cal Oe1g1]} d3 15. Nc3 Nbd7 16. O-O Nc5 17. Bc6 Rb8 18. b4 $132 {[%mdl 2048] White puts up resistance} Qd6 19. bxc5 Qxc6 20. Qxd3 {Hoping for Ne2.} Qxc5 21. Na4 Qa5 22. Nc5 Qxa2 23. Ne5 {[#] Threatens to win with Nc6.} (23. Ra1 $5 Qd5 $8 24. Qxd5 Nxd5 25. Nxa6 $11) 23... Be6 $2 (23... Rb2 $11) 24. Qxa6 {White has more active pieces.} ({White must play} 24. Ra1 $1 $16 {[%cal Ra1a2]} Qd5 25. Qxd5 Bxd5 26. Ncd7) 24... Qxa6 {The position is equal.} 25. Nxa6 {A dynamic duo of knights.} Rbc8 26. Nb4 Rxc1 27. Rxc1 Rc8 28. Rxc8+ Bxc8 29. h4 {[%cal Bh2h4,Bh4g5][%mdl 32]} h6 30. f3 g5 31. hxg5 {Weighted Error Value: White=0.13 (very precise) /Black=0.15 (very precise) .  Mistake:       	White=1     	Black=1      OK:         	White=11    	Black=11     Best:        	---       	Black=1} 1/2-1/2

[Event "Smuk Skak GM Tournament 2024"]
[Site "Skanderborg"]
[Date "2024.08.24"]
[Round "8.4"]
[White "Solodovnichenko, Yuri"]
[Black "Kanov, Nikola"]
[Result "0-1"]
[ECO "B48"]
[WhiteElo "2491"]
[BlackElo "2414"]
[Annotator "RC"]
[PlyCount "96"]
[EventDate "2024.08.11"]
[EventType "tourn"]
[EventCountry "DEN"]
[SourceTitle "playchess.com"]
[Source "ChessBase"]
[SourceQuality "1"]
[TimeControl "40/5400+30:1800+30"]

1. e4 {[%emt 0:00:01]} c5 {[%emt 0:00:11]} 2. Nf3 {[%emt 0:00:05]} e6 {[%emt 0:00:09]} 3. d4 {[%emt 0:00:07]} cxd4 {[%emt 0:00:05]} 4. Nxd4 {[%emt 0:00:03]} Nc6 {[%emt 0:00:11]} 5. Nc3 {[%emt 0:00:04]} Qc7 {[%emt 0:00:14]} 6. Be3 {[%emt 0:00:09]} a6 {[%emt 0:00:15]} 7. g4 {[%emt 0:00:17]} h6 {[%emt 0:00:52]} 8. h4 {[%emt 0:00:07]} Nf6 {[%emt 0:00:33]} 9. Nxc6 {[%emt 0:01:09]} bxc6 {[%emt 0:00:38]} 10. Qf3 {[%emt 0:00:09]} Rb8 {[%emt 0:00:39]} 11. O-O-O {[%emt 0:00:07]} d5 {[%emt 0:00:56]} 12. exd5 {[%emt 0:10:42]} cxd5 {[%emt 0:00:14]} 13. Bf4 {[%emt 0:01:11]} Bd6 {[%emt 0:03:11]} 14. Bxd6 {[%emt 0:00:07]} Qxd6 {[%emt 0:00:07]} 15. g5 {[%emt 0:01:47]} Nd7 {[%emt 0:08:09]} 16. g6 {[%emt 0:24:10]} f5 {[%emt 0:04:14]} 17. Bc4 {[%emt 0:06:35]} Ne5 {[%emt 0:07:01]} 18. Qe2 {[%emt 0:00:05]} Nxc4 {[%emt 0:08:43]} 19. Qxc4 {[%emt 0:00:38]} O-O {[%emt 0:01:24]} 20. h5 {[%emt 0:04:58]} Qb6 {[%emt 0:04:07]} 21. Qb3 {[%emt 0:08:04]} Qa7 {[%emt 0:01:48]} 22. Qa4 {[%emt 0:06:09]} Qxf2 {[%emt 0:02:28]} 23. b3 Qc5 {[%emt 0:08:20]} 24. Qf4 {[%emt 0:07:26]} Bd7 {[%emt 0:00:48]} 25. Kb2 {[%emt 0:01:04]} Rfc8 26. Qe5 a5 27. a4 Rb4 28. Rh2 Qc7 29. Re2 Qxe5 30. Rxe5 Rf8 31. Rd3 Rh4 32. Ne2 Rxh5 33. Nf4 Rh2 34. Nxe6 Bxe6 35. Rxe6 f4 36. Rf3 Rg2 37. Ra6 Rg3 38. Rf1 f3 39. Rxa5 f2 40. Rxd5 Rxg6 41. Rd2 Rgf6 42. a5 g5 43. a6 g4 44. a7 g3 45. Rd4 R6f7 46. Ra4 Ra8 47. Rd4 {[%emt 0:44:21]} Raf8 {[%emt 1:01:40]} 48. Ra4 {[%emt 0:03:09]} Ra8 {[%emt 0:01:12]} 0-1